Cogmind - Beta 13 @@@ ROGUE MODE // 2024.07.30 @ 15:01:17 Player: TinyBoulder Result: Escaped! Performance ------------- Evolutions (9) 4500 Regions Visited (18) 3600 Robots Destroyed (69) 345 Value Destroyed (2767) 2767 Prototype IDs (32) 640 Alien Tech Used (0) 0 Bonus (8929) 8929 TOTAL SCORE: 20781 Bonus ------- High Alert Combat Kills 18 Follower Combat Kills 111 Entered DSFs 500 Aligned with FarCom 300 Met Warlord at Base 500 MAIN.C Attacked Warlord 500 Met Warlord at Research 2000 Invited to Help at Command 2000 Win 3000 Cogmind --------- Core Integrity 764/1600 Matter 230/300 Energy 93/100 System Corruption 1% Temperature Cool (0) Movement Core (50) Location To Epsilon Eridani Parts ------- > --- POWER (2) -------- (None) > --- PROPULSION (8) --- (None) > --- UTILITY (9) ------ System Shield > --- WEAPON (6) ------- (None) > --- INVENTORY (5) ---- Light Angular Momentum Engine Vortex Cannon (12) Peak State ------------ > --- POWER ------------ Micro Antimatter Reactor Light Quantum Reactor > --- PROPULSION ------- Impulse Thruster Array Impulse Thruster Array Impulse Thruster Array Impulse Thruster Array > --- UTILITY ---------- Experimental Cooling System Experimental Cooling System System Shield Makeshift System Shield > --- WEAPON ----------- Heavy Dispersion Rifle Heavy Dispersion Rifle Heavy Dispersion Rifle Enhanced Quantum Rifle Enhanced Quantum Rifle > --- INVENTORY -------- Light Angular Momentum Engine Vortex Cannon [Rating: 150] Favorites ----------- Power Deuterium Engine Engine Deuterium Engine Power Core Light Nuclear Core Reactor Micro Antimatter Reactor Propulsion Armored Treads Treads Armored Treads Leg Myomer Leg Hover Unit Backup Propulsion III Flight Unit Nuclear Pulse Thruster Utility Makeshift System Shield Device Cooling System Storage Medium Storage Unit Processor Transport Network Coupler Hackware Makeshift System Shield Protection Improved Medium Armor Plating Weapon Beamcaster Energy Gun Beamcaster Energy Cannon Vortex Cannon Ballistic Gun Heavy Assault Rifle Launcher Rocket Launcher Slashing Weapon Chainsword Build | -11 -10 -10 -10 -9 -8 -7 -6 -6 -5 -4 -4 -4 -4 -3 -3 -3 -2 -1 ------- Run | Yrd Mat Min Exi Min Mat Fac Fac Ext Fac Fac Upp Upp War Pro Res DSF Res Acc Slots Evolved 18 | . . . . . 4 2 2 . 2 2 . . . . 2 . 2 2 Power 1 | . . . . . . . . . 1 . . . . . . . . . Propulsion 6 | . . . . . 1 . 1 . 1 1 . . . . . . . 2 Utility 7 | . . . . . 2 1 1 . . 1 . . . . 1 . 1 . Weapon 4 | . . . . . 1 1 . . . . . . . . 1 . 1 . Parts Attached 116 | 6 7 4 2 . 18 6 11 6 . 1 3 6 6 . 3 6 17 14 Power 13 | 1 . . 1 . 2 . 1 1 . . . . 1 . 1 . 2 3 Engine 8 | 1 . . 1 . 1 . 1 1 . . . . . . . . . 3 Core 1 | . . . . . 1 . . . . . . . . . . . . . Reactor 4 | . . . . . . . . . . . . . 1 . 1 . 2 . Propulsion 28 | 2 . . . . 6 . 1 1 . . 1 1 2 . 1 4 6 3 Treads 7 | 2 . . . . 3 . 1 . . . . . . . . . 1 . Leg 5 | . . . . . 3 . . . . . . . 2 . . . . . Wheel . | . . . . . . . . . . . . . . . . . . . Hover 6 | . . . . . . . . . . . 1 . . . 1 4 . . Flight 10 | . . . . . . . . 1 . . . 1 . . . . 5 3 Utility 28 | 1 1 1 1 . 4 3 5 1 . 1 . 5 . . . . 3 2 Device 16 | . 1 1 . . 1 3 4 1 . 1 . 1 . . . . 2 1 Storage 2 | 1 . . 1 . . . . . . . . . . . . . . . Processor 2 | . . . . . 1 . . . . . . 1 . . . . . . Hackware 4 | . . . . . . . . . . . . 3 . . . . 1 . Protection 4 | . . . . . 2 . 1 . . . . . . . . . . 1 Artifact . | . . . . . . . . . . . . . . . . . . . Weapon 47 | 2 6 3 . . 6 3 4 3 . . 2 . 3 . 1 2 6 6 Energy Gun 20 | . . 1 . . 3 2 3 1 . . . . 1 . 1 2 4 2 Energy Cannon 8 | . . . . . . . . . . . 1 . 1 . . . 2 4 Ballistic Gun 11 | 2 4 1 . . 1 1 1 . . . . . 1 . . . . . Ballistic Cannon . | . . . . . . . . . . . . . . . . . . . Launcher 7 | . 2 1 . . 2 . . 2 . . . . . . . . . . Special Weapon . | . . . . . . . . . . . . . . . . . . . Impact Weapon . | . . . . . . . . . . . . . . . . . . . Slashing Weapon 1 | . . . . . . . . . . . 1 . . . . . . . Piercing Weapon . | . . . . . . . . . . . . . . . . . . . Special Melee Weapon . | . . . . . . . . . . . . . . . . . . . Unidentified Prototypes 7 | . . . . . 1 1 . . . . . . 2 . . . 2 1 Corrupted Parts 1 | . . . . . . . . . . . . . 1 . . . . . System Corruption 3 | . . . . . . . . . . . . . 3 . . . . . Parts Lost 38 | . . . . . . . 1 3 . . . 7 . . . 4 5 18 Power 4 | . . . . . . . . . . . . . . . . 1 1 2 Propulsion 13 | . . . . . . . . . . . . 2 . . . 2 3 6 Utility 13 | . . . . . . . 1 2 . . . 4 . . . . 1 5 Weapon 8 | . . . . . . . . 1 . . . 1 . . . 1 . 5 Highest Loss Streak 14 | . . . . . . . 1 1 . . . 6 . . . 4 3 14 To Critical Strikes 1 | . . . . . . . . . . . . . . . . . . 1 Average Slot Usage (%) 70 | . 94 100 100 100 93 97 94 91 5 5 10 23 43 52 53 55 21 30 Engine 6 | . 14 14 14 14 6 7 6 5 . . . . 7 5 4 4 . . Treads 15 | . 28 28 28 28 22 23 22 24 . . . . . . . . 2 . Hover 1 | . . . . . . . . . . . . . 8 10 11 17 1 . Flight 1 | . . . . . . . . . 5 5 5 5 . . . . 1 10 Device 11 | . 9 14 14 14 16 21 25 22 . . 5 6 . . . . . 2 Storage 6 | . 14 14 14 14 9 7 6 5 . . . . . . . . . . Hackware 3 | . . . . . . . . . . . . 6 10 10 9 9 11 5 Protection 2 | . . . . . 5 7 6 5 . . . . . . . . . . Energy Gun 11 | . . 1 14 14 15 22 20 21 . . . . 12 15 16 18 3 8 Ballistic Gun 7 | . 26 25 14 14 10 6 5 . . . . . . . . . . . Naked Turns . | . . . . . . . . . . . . . . . . . . . Heaviest Build 60 | 13 17 19 22 22 52 60 60 59 . 1 4 5 26 14 34 42 46 58 Greatest Support 80 | 40 40 40 40 40 60 60 80 80 6 6 6 10 45 16 42 66 48 64 Greatest Overweight (x) 1 | . . . . . 1 . . . . . . . . . . . 1 . Average Overweight (x) . | . . . . . . . . . . . . . . . . . . . Largest Inventory Capacity 10 | 8 8 8 10 10 10 10 10 10 5 5 5 5 5 5 5 5 5 5 Average Capacity 7 | 7 8 8 8 10 10 10 10 9 5 5 5 5 5 5 5 5 5 5 Most Carried 10 | 1 8 8 8 10 10 10 10 10 3 4 4 3 5 5 5 5 5 4 Average Carried 6 | . 3 7 7 8 9 9 9 9 3 3 3 3 4 5 4 4 4 2 Final Capacity 10 | 8 8 8 10 10 10 10 10 5 5 5 5 5 5 5 5 5 5 5 Final Carried 10 | 1 8 8 8 10 10 10 10 3 3 4 3 3 5 5 3 5 4 2 Class Distribution -------------------- 32% | Mutant 15% | Hacker-Mutant 13% | Hacker-Gunner 11% | Tank 10% | Skirmisher 9% | Scavenger-Gunner Dominant Class ---------------- Mutant | -10/Materials Mutant | -10/Mines Mutant | -10/Exiles Mutant | -9/Mines Skirmisher | -8/Materials Tank | -7/Factory Tank | -6/Factory Scavenger-Gunner | -6/Extension Mutant | -5/Factory Mutant | -4/Factory Mutant | -4/Upper Caves Hacker-Mutant | -4/Upper Caves Hacker-Gunner | -4/Warlord Hacker-Gunner | -3/Proximity Caves Hacker-Gunner | -3/Research Hacker-Gunner | -3/DSF Hacker-Mutant | -2/Research Mutant | -1/Access Resources | -11 -10 -10 -10 -9 -8 -7 -6 -6 -5 -4 -4 -4 -4 -3 -3 -3 -2 -1 ----------- Run | Yrd Mat Min Exi Min Mat Fac Fac Ext Fac Fac Upp Upp War Pro Res DSF Res Acc Matter Collected 1694 | 205 169 101 . 20 422 . 273 113 . . 23 17 110 . . 37 194 10 Remotely . | . . . . . . . . . . . . . . . . . . . Salvage Created 2828 | . 202 63 . . 984 . 1000 353 . . . . . . . 57 . 169 Parts 132 | . 18 6 . . 49 . 43 8 . . . . . . . 7 . 1 Haulers Intercepted 3 | . . . . . 3 . . . . . . . . . . . . . Recyclers Shooed 2 | . . . . . . . 2 . . . . . . . . . . . Parts Field Recycled . | . . . . . . . . . . . . . . . . . . . Retrieved Matter . | . . . . . . . . . . . . . . . . . . . Parts Self-Destructed . | . . . . . . . . . . . . . . . . . . . Prevented . | . . . . . . . . . . . . . . . . . . . Kills | -11 -10 -10 -10 -9 -8 -7 -6 -6 -5 -4 -4 -4 -4 -3 -3 -3 -2 -1 ------- Run | Yrd Mat Min Exi Min Mat Fac Fac Ext Fac Fac Upp Upp War Pro Res DSF Res Acc Combat Hostiles Destroyed 59 | . 10 4 . . 17 . 16 7 . . . . . . . 2 . 3 Guns 45 | . 4 1 . . 15 . 16 5 . . . . . . . 2 . 2 Cannons 1 | . . . . . . . . . . . . . . . . . . 1 AOE 13 | . 6 3 . . 2 . . 2 . . . . . . . . . . Classes Destroyed 12 | . 3 . . . 7 . 1 . . . . . . . . 1 . . Worker 2 | . 1 . . . 1 . . . . . . . . . . . . . Builder 2 | . . . . . 1 . 1 . . . . . . . . . . . Hauler 3 | . . . . . 3 . . . . . . . . . . . . . Recycler 2 | . . . . . 2 . . . . . . . . . . . . . Watcher 1 | . . . . . 1 . . . . . . . . . . . . . Swarmer 12 | . 5 3 . . 4 . . . . . . . . . . . . . Cutter 2 | . . . . . . . . . . . . . . . . 2 . . Grunt 32 | . 5 1 . . 8 . 11 6 . . . . . . . . . 1 Brawler 3 | . . . . . 1 . 1 1 . . . . . . . . . . Sentry 6 | . . . . . 3 . 2 . . . . . . . . . . 1 Hunter 1 | . . . . . 1 . . . . . . . . . . . . . Programmer 3 | . . . . . . . 2 . . . . . . . . . . 1 Best Kill Streak 10 | . 6 3 . . 10 . 5 4 . . . . . . . 2 . 2 Combat Bots Only 7 | . 5 3 . . 7 . 4 4 . . . . . . . 2 . 2 Max Kills in Single Turn 4 | . 2 2 . . 4 . 1 2 . . . . . . . 1 . 1 Gunslinging . | . . . . . . . . . . . . . . . . . . . Exploded 2 | . 2 2 . . 2 . . 2 . . . . . . . . . . Melee . | . . . . . . . . . . . . . . . . . . . Uniques/NPCs Destroyed . | . . . . . . . . . . . . . . . . . . . Combat | -11 -10 -10 -10 -9 -8 -7 -6 -6 -5 -4 -4 -4 -4 -3 -3 -3 -2 -1 -------- Run | Yrd Mat Min Exi Min Mat Fac Fac Ext Fac Fac Upp Upp War Pro Res DSF Res Acc Hostile Shots Fired 596 | . 46 9 . . 50 . 102 42 . . 4 59 16 . . 13 48 207 Missed 255 | . 12 2 . . 16 . 29 16 . . 2 35 6 . . 6 14 117 Damage Taken 7212 | . 333 69 . . 440 . 995 562 . . 5 478 292 . . 474 1004 2560 Core 2339 | . 62 3 . . 42 . 138 274 . . . 277 94 . . 79 534 836 Absorbed by Shields . | . . . . . . . . . . . . . . . . . . . Redirected to Shielding 107 | . . . . . . . . . . . . . . . . . . 107 Ignored by Resistances 28 | . . . . . 28 . . . . . . . . . . . . . Core Remaining (%) 78 | 100 . . . 74 92 100 . 51 100 . . . . 67 . 93 63 47 Volleys Fired 136 | . 19 5 . . 38 . 32 20 . . . . 5 . . 2 2 13 Largest 5 | . 2 2 . . 3 . 4 4 . . . . 4 . . 2 1 5 Hottest 412 | . 40 56 . . 156 . 282 282 . . . . 155 . . 130 50 412 Shots Fired 377 | . 33 7 . . 101 . 129 52 . . . . 15 . . 4 3 33 Gun 352 | . 28 3 . . 98 . 129 48 . . . . 15 . . 4 2 25 Cannon 9 | . . . . . . . . . . . . . . . . . 1 8 Launcher 16 | . 5 4 . . 3 . . 4 . . . . . . . . . . Special . | . . . . . . . . . . . . . . . . . . . Kinetic 103 | . 28 3 . . 40 . 29 . . . . . 3 . . . . . Thermal 246 | . . . . . 58 . 100 48 . . . . 10 . . 4 1 25 Explosive 16 | . 5 4 . . 3 . . 4 . . . . . . . . . . Electromagnetic . | . . . . . . . . . . . . . . . . . . . Entropic 12 | . . . . . . . . . . . . . 2 . . . 2 8 Robot Hit Streak 26 | . 10 8 . . 26 . 10 9 . . . . 11 . . 4 . 6 Robot Miss Streak 4 | . 3 1 . . 3 . 4 4 . . . . 1 . . . . 2 Penetration Max 1 | . . . . . . . 1 . . . . . . . . . . . Secondary Targets 8 | . 1 . . . 4 . 3 . . . . . . . . . . . Max Gunslinging Chain 1 | . 1 . . . 1 . 1 . . . . . . . . . . . Shots Hit Robots 237 | . 19 4 . . 78 . 81 24 . . . . 10 . . 3 . 18 Core Hits 136 | . 16 4 . . 40 . 43 19 . . . . 5 . . 2 . 7 Critical Kills . | . . . . . . . . . . . . . . . . . . . Critical Parts Destroyed 5 | . . . . . . . 1 . . . . . 1 . . . . 3 Critical Strikes 22 | . . . . . 6 . 12 . . . . . 1 . . . . 3 Burn 17 | . . . . . 6 . 11 . . . . . . . . . . . Destroy 5 | . . . . . . . 1 . . . . . 1 . . . . 3 Melee Attacks . | . . . . . . . . . . . . . . . . . . . Impact . | . . . . . . . . . . . . . . . . . . . Slashing . | . . . . . . . . . . . . . . . . . . . Piercing . | . . . . . . . . . . . . . . . . . . . Sneak Attacks . | . . . . . . . . . . . . . . . . . . . Combat Hostiles . | . . . . . . . . . . . . . . . . . . . Follow-up Attacks . | . . . . . . . . . . . . . . . . . . . Damage Inflicted 7039 | . 651 243 . . 2090 . 2045 897 . . . . 194 . . 93 . 826 Guns 5015 | . 194 35 . . 1436 . 2045 476 . . . . 194 . . 93 . 542 Cannons 284 | . . . . . . . . . . . . . . . . . . 284 Explosions 1740 | . 457 208 . . 654 . . 421 . . . . . . . . . . Melee . | . . . . . . . . . . . . . . . . . . . Ramming . | . . . . . . . . . . . . . . . . . . . Kinetic 1278 | . 194 35 . . 491 . 483 . . . . . 75 . . . . . Thermal 3947 | . . . . . 945 . 1562 731 . . . . 74 . . 93 . 542 Explosive 1485 | . 457 208 . . 654 . . 166 . . . . . . . . . . Electromagnetic . | . . . . . . . . . . . . . . . . . . . Impact . | . . . . . . . . . . . . . . . . . . . Slashing . | . . . . . . . . . . . . . . . . . . . Piercing . | . . . . . . . . . . . . . . . . . . . Entropic 329 | . . . . . . . . . . . . . 45 . . . . 284 Highest Corruption 4 | . . . . . . . 2 2 . . . . 3 3 . . 4 1 Average Corruption 2 | . . . . . . . 1 2 . . . . 3 3 . . 4 1 Corruption Purged . | . . . . . . . . . . . . . . . . . . . Corruption Blocked . | . . . . . . . . . . . . . . . . . . . Effects 36 | . . . . . . . 11 7 . . . . 3 1 . . 13 1 Message Errors 8 | . . . . . . . 3 2 . . . . 1 1 . . 1 . Matter Fused 7 | . . . . . . . 2 2 . . . . 1 . . . 2 . Heat Flow Errors 4 | . . . . . . . . . . . . . 1 . . . 3 . Energy Discharges 3 | . . . . . . . 2 . . . . . . . . . . 1 Parts Fused 1 | . . . . . . . 1 . . . . . . . . . . . Data Loss (minor) 6 | . . . . . . . . 2 . . . . . . . . 4 . Data Loss (major) 1 | . . . . . . . . . . . . . . . . . 1 . Misfires 2 | . . . . . . . 1 . . . . . . . . . 1 . Alerts 3 | . . . . . . . 2 . . . . . . . . . 1 . Weapon Failures 1 | . . . . . . . . 1 . . . . . . . . . . Overload Shots . | . . . . . . . . . . . . . . . . . . . Overflow Damage 69 | . . 22 . . . . . 47 . . . . . . . . . . Projectiles . | . . . . . . . . . . . . . . . . . . . Explosions 69 | . . 22 . . . . . 47 . . . . . . . . . . Melee . | . . . . . . . . . . . . . . . . . . . Knockbacks . | . . . . . . . . . . . . . . . . . . . Impact . | . . . . . . . . . . . . . . . . . . . Kinetic . | . . . . . . . . . . . . . . . . . . . Secondary . | . . . . . . . . . . . . . . . . . . . Self-Inflicted Damage 11 | . . 11 . . . . . . . . . . . . . . . . Shots 1 | . . 1 . . . . . . . . . . . . . . . . Rammed . | . . . . . . . . . . . . . . . . . . . Targets Rammed . | . . . . . . . . . . . . . . . . . . . Kicked . | . . . . . . . . . . . . . . . . . . . Crushed . | . . . . . . . . . . . . . . . . . . . Highest Temperature 299 | . 12 . . . 126 . 221 299 . . . 3 186 . . 8 206 234 Average Temperature 71 | . 6 . . . 36 . 75 107 . . . 3 77 . . 6 84 94 Received Heat Transfer 1539 | . 108 6 . . 189 . 429 515 . . . 148 54 . . . 63 27 Siege Activations . | . . . . . . . . . . . . . . . . . . . Robots Corrupted . | . . . . . . . . . . . . . . . . . . . Combat Hostiles . | . . . . . . . . . . . . . . . . . . . Parts Fried . | . . . . . . . . . . . . . . . . . . . Impact Corruptions . | . . . . . . . . . . . . . . . . . . . Robots Melted . | . . . . . . . . . . . . . . . . . . . Combat Hostiles . | . . . . . . . . . . . . . . . . . . . Parts Melted 20 | . . . . . 6 . 12 1 . . . . . . . 1 . . Heat Transferred 7499 | . . . . . 2294 . 3404 951 . . . . 147 . . 111 . 592 Parts Sabotaged . | . . . . . . . . . . . . . . . . . . . Parts Stolen 1 | . . . . . . . . . . . 1 . . . . . . . Parts Stripped . | . . . . . . . . . . . . . . . . . . . Power Chain Reactions . | . . . . . . . . . . . . . . . . . . . Alert | -11 -10 -10 -10 -9 -8 -7 -6 -6 -5 -4 -4 -4 -4 -3 -3 -3 -2 -1 ------- Run | Yrd Mat Min Exi Min Mat Fac Fac Ext Fac Fac Upp Upp War Pro Res DSF Res Acc Peak Influence 468 | . 291 228 . . 330 164 386 385 83 55 . . . . 150 152 463 468 Initial 150 | . . 113 . . . 149 79 137 83 40 . . . . 150 112 68 61 Average 158 | . 200 192 . . 105 159 163 225 83 44 . . . . 150 119 195 168 Maximum Alert Level 2 | . 1 1 . . 1 . 1 1 . . . . . . . . 2 2 Low Security (%) 66 | 100 48 18 . 100 80 100 72 65 100 100 . . . . 100 100 48 66 Level 1 31 | . 51 81 . . 19 . 27 34 . . . . . . . . 43 25 Level 2 2 | . . . . . . . . . . . . . . . . . 8 7 Level 3 . | . . . . . . . . . . . . . . . . . . . Level 4 . | . . . . . . . . . . . . . . . . . . . Level 5 . | . . . . . . . . . . . . . . . . . . . High Security . | . . . . . . . . . . . . . . . . . . . Max Security . | . . . . . . . . . . . . . . . . . . . Squads Dispatched 13 | . 1 . . . 2 . 2 1 . . . . . . . 1 . 6 Investigation 6 | . 1 . . . . . 1 1 . . . . . . . . . 3 Extermination . | . . . . . . . . . . . . . . . . . . . Reinforcement 7 | . . . . . 2 . 1 . . . . . . . . 1 . 3 Assault . | . . . . . . . . . . . . . . . . . . . Garrison . | . . . . . . . . . . . . . . . . . . . Intercept . | . . . . . . . . . . . . . . . . . . . Searches Triggered . | . . . . . . . . . . . . . . . . . . . Construction Impeded . | . . . . . . . . . . . . . . . . . . . Haulers Reinforced 2 | . . . . . . . 1 . . . . . . . . . . 1 Active Scanning Responses . | . . . . . . . . . . . . . . . . . . . Cargo Convoy Interrupts . | . . . . . . . . . . . . . . . . . . . Stealth | -11 -10 -10 -10 -9 -8 -7 -6 -6 -5 -4 -4 -4 -4 -3 -3 -3 -2 -1 --------- Run | Yrd Mat Min Exi Min Mat Fac Fac Ext Fac Fac Upp Upp War Pro Res DSF Res Acc Distress Signals 23 | . 1 . . . 2 . 1 4 . . . . 2 . . . 11 2 Communications Jammed . | . . . . . . . . . . . . . . . . . . . Distress Signals . | . . . . . . . . . . . . . . . . . . . Times Spotted 179 | . 14 3 . . 26 1 29 15 . 2 8 12 18 1 . 4 12 34 Peak Tracking Total 14 | . 7 3 . . 5 1 6 7 . 2 5 6 9 1 . 2 8 14 Tactical Retreats 19 | . . . . . 1 . 2 . . . 2 5 . . . . 2 7 Traps | -11 -10 -10 -10 -9 -8 -7 -6 -6 -5 -4 -4 -4 -4 -3 -3 -3 -2 -1 ------- Run | Yrd Mat Min Exi Min Mat Fac Fac Ext Fac Fac Upp Upp War Pro Res DSF Res Acc Traps Triggered 6 | . 1 . . . . . . . . . . . 1 . . 1 1 2 Indirectly . | . . . . . . . . . . . . . . . . . . . Trap Hack Attempts . | . . . . . . . . . . . . . . . . . . . Triggered . | . . . . . . . . . . . . . . . . . . . Disarmed . | . . . . . . . . . . . . . . . . . . . Reprogrammed . | . . . . . . . . . . . . . . . . . . . Reused 1 | . . . . . 1 . . . . . . . . . . . . . Traps Extracted . | . . . . . . . . . . . . . . . . . . . Installed 2 | . . . . . 2 . . . . . . . . . . . . . Triggered 7 | . . . . . 1 . . . . . . . 6 . . . . . Most Traps Carried 2 | . . . . 2 2 . . . . . . . . . . . . . Machines | -11 -10 -10 -10 -9 -8 -7 -6 -6 -5 -4 -4 -4 -4 -3 -3 -3 -2 -1 ---------- Run | Yrd Mat Min Exi Min Mat Fac Fac Ext Fac Fac Upp Upp War Pro Res DSF Res Acc Machines Disabled 9 | . 1 . . . 1 . . 4 . . . . . . . . 2 1 Max in Single Turn 3 | . 1 . . . 1 . . 3 . . . . . . . . 1 1 Garrison Access 3 | . . . . . . . 1 . . . . . . . . . 2 . Energy Cycler 2 | . . . . . . . . 2 . . . . . . . . . . Machines Repaired . | . . . . . . . . . . . . . . . . . . . Machines Dismantled . | . . . . . . . . . . . . . . . . . . . Machines Sabotaged . | . . . . . . . . . . . . . . . . . . . Overloaded Fab Kills . | . . . . . . . . . . . . . . . . . . . Hacking | -11 -10 -10 -10 -9 -8 -7 -6 -6 -5 -4 -4 -4 -4 -3 -3 -3 -2 -1 --------- Run | Yrd Mat Min Exi Min Mat Fac Fac Ext Fac Fac Upp Upp War Pro Res DSF Res Acc Machines Accessed 26 | . 3 1 1 . 2 1 4 1 . . 1 1 2 . 1 . . 8 Terminals 15 | . 3 . . . 2 . 1 1 . . . . . . 1 . . 7 Fabricators . | . . . . . . . . . . . . . . . . . . . Repair Stations . | . . . . . . . . . . . . . . . . . . . Recycling Units 1 | . . . . . . . 1 . . . . . . . . . . . Scanalyzers . | . . . . . . . . . . . . . . . . . . . Garrison Access 4 | . . . . . . 1 2 . . . . . . . . . . 1 Total Hacks 55 | . 8 1 1 . 3 1 12 4 . . 1 1 2 . 1 . . 20 Successful 18 | . . 1 1 . 1 . 7 . . . 1 1 2 . 1 . . 3 Failed 37 | . 8 . . . 2 1 5 4 . . . . . . . . . 17 Catastrophic 8 | . 2 . . . . 1 . 1 . . . . . . . . . 4 Database Lockouts . | . . . . . . . . . . . . . . . . . . . Manual 9 | . 3 . 1 . 2 . 1 . . . . . . . . . . 2 Terminals 39 | . 8 . . . 3 . 5 4 . . . . . . 1 . . 18 Fabricators . | . . . . . . . . . . . . . . . . . . . Repair Stations . | . . . . . . . . . . . . . . . . . . . Recycling Units 3 | . . . . . . . 3 . . . . . . . . . . . Scanalyzers . | . . . . . . . . . . . . . . . . . . . Garrison Access 7 | . . . . . . 1 4 . . . . . . . . . . 2 Terminal Hacks 14 | . . 1 1 . 1 . 3 . . . 1 1 2 . 1 . . 3 Record 2 | . . . . . . . . . . . 1 . . . . . . 1 Prototype ID Bank 1 | . . . . . . . 1 . . . . . . . . . . . Open Door 5 | . . 1 . . . . . . . . . 1 2 . . . . 1 Open DSF 1 | . . . . . . . . . . . . . . . 1 . . . Branch Access Points 1 | . . . . . . . . . . . . . . . . . . 1 Emergency Access Points 1 | . . . . . . . 1 . . . . . . . . . . . Terminal Index 1 | . . . . . . . 1 . . . . . . . . . . . Zone Layout 1 | . . . . . 1 . . . . . . . . . . . . . Derelict Proto ID Bank 1 | . . . 1 . . . . . . . . . . . . . . . Fabricator Hacks . | . . . . . . . . . . . . . . . . . . . Repair Station Hacks . | . . . . . . . . . . . . . . . . . . . Recycling Unit Hacks 3 | . . . . . . . 3 . . . . . . . . . . . Process 1 | . . . . . . . 1 . . . . . . . . . . . Report Inventory 1 | . . . . . . . 1 . . . . . . . . . . . Retrieve Matter 1 | . . . . . . . 1 . . . . . . . . . . . Scanalyzer . | . . . . . . . . . . . . . . . . . . . Garrison Access Hacks 1 | . . . . . . . 1 . . . . . . . . . . . Seal Access 1 | . . . . . . . 1 . . . . . . . . . . . Unauthorized Hacks . | . . . . . . . . . . . . . . . . . . . Terminals . | . . . . . . . . . . . . . . . . . . . Fabricators . | . . . . . . . . . . . . . . . . . . . Repair Stations . | . . . . . . . . . . . . . . . . . . . Recycling Units . | . . . . . . . . . . . . . . . . . . . Scanalyzers . | . . . . . . . . . . . . . . . . . . . Garrison Access . | . . . . . . . . . . . . . . . . . . . Data Cores Recovered 1 | . . . . . . . . . . . . . . . . . . 1 Used 1 | . . . . . . . . . . . . . . . . . . 1 Hacking Detections 16 | . 3 . . . 1 1 3 1 . . . . . . . . . 7 Full Trace Events 5 | . . . . . . . 1 1 . . . . . . . . . 3 Feedback Events . | . . . . . . . . . . . . . . . . . . . Feedback Blocked . | . . . . . . . . . . . . . . . . . . . Robot Schematics Acquired . | . . . . . . . . . . . . . . . . . . . Robots Built . | . . . . . . . . . . . . . . . . . . . Authchips . | . . . . . . . . . . . . . . . . . . . Time . | . . . . . . . . . . . . . . . . . . . Total Robot Build Rating . | . . . . . . . . . . . . . . . . . . . Part Schematics Acquired . | . . . . . . . . . . . . . . . . . . . Parts Built . | . . . . . . . . . . . . . . . . . . . Authchips . | . . . . . . . . . . . . . . . . . . . Time . | . . . . . . . . . . . . . . . . . . . Total Part Build Rating . | . . . . . . . . . . . . . . . . . . . Parts Repaired . | . . . . . . . . . . . . . . . . . . . Time . | . . . . . . . . . . . . . . . . . . . Parts Recycled . | . . . . . . . . . . . . . . . . . . . Recycled Matter 24 | . . . . . . . 24 . . . . . . . . . . . Retrieved Matter 24 | . . . . . . . 24 . . . . . . . . . . . Retrieved Components . | . . . . . . . . . . . . . . . . . . . Parts Scanalyzed . | . . . . . . . . . . . . . . . . . . . Part Schematics Acquired . | . . . . . . . . . . . . . . . . . . . Parts Damaged . | . . . . . . . . . . . . . . . . . . . Bothacking | -11 -10 -10 -10 -9 -8 -7 -6 -6 -5 -4 -4 -4 -4 -3 -3 -3 -2 -1 ------------ Run | Yrd Mat Min Exi Min Mat Fac Fac Ext Fac Fac Upp Upp War Pro Res DSF Res Acc Used RIF Installer . | . . . . . . . . . . . . . . . . . . . Robots Hacked . | . . . . . . . . . . . . . . . . . . . Non-combat . | . . . . . . . . . . . . . . . . . . . Combat . | . . . . . . . . . . . . . . . . . . . Robot Hacks Applied . | . . . . . . . . . . . . . . . . . . . Relay Couplers Released 4 | . . . . . . . . . . . . . . . . . 4 . Machine Destruction 4 | . . . . . . . . . . . . . . . . . 4 . Fabnet Peak Effective % . | . . . . . . . . . . . . . . . . . . . Robots Rewired 3 | . . . . . . . . 3 . . . . . . . . . . Allies Hacked . | . . . . . . . . . . . . . . . . . . . Hacks Repelled . | . . . . . . . . . . . . . . . . . . . Allies | -11 -10 -10 -10 -9 -8 -7 -6 -6 -5 -4 -4 -4 -4 -3 -3 -3 -2 -1 -------- Run | Yrd Mat Min Exi Min Mat Fac Fac Ext Fac Fac Upp Upp War Pro Res DSF Res Acc Total Allies 4 | . . . . . . . . 4 . . . . . . . . . . Largest Group 3 | . . . . . . . . 3 . . . . . . . . . . Highest-Rated Group 90 | . . . . . . . . 90 . . . . . . . . . . Highest-Rated Ally 39 | . . . . . . . . 39 . . . . . . . . . . Total Orders . | . . . . . . . . . . . . . . . . . . . Ally Attacks 24 | . . . . . . . 6 18 . . . . . . . . . . Total Damage 941 | . . . . . . . 237 704 . . . . . . . . . . Kills 3 | . . . . . . . 2 1 . . . . . . . . . . Allies Corrupted . | . . . . . . . . . . . . . . . . . . . Allies Melted 1 | . . . . . . . . . . . . . . . . . 1 . Turrets Deployed 3 | . . . . . . . 1 2 . . . . . . . . . . Intel | -11 -10 -10 -10 -9 -8 -7 -6 -6 -5 -4 -4 -4 -4 -3 -3 -3 -2 -1 ------- Run | Yrd Mat Min Exi Min Mat Fac Fac Ext Fac Fac Upp Upp War Pro Res DSF Res Acc Robot Analysis Total . | . . . . . . . . . . . . . . . . . . . Derelict Logs Recovered 4 | . . 1 . . . . . . . . 1 2 . . . . . . Drone Launches . | . . . . . . . . . . . . . . . . . . . Drone Recoveries . | . . . . . . . . . . . . . . . . . . . Exploration | -11 -10 -10 -10 -9 -8 -7 -6 -6 -5 -4 -4 -4 -4 -3 -3 -3 -2 -1 ------------- Run | Yrd Mat Min Exi Min Mat Fac Fac Ext Fac Fac Upp Upp War Pro Res DSF Res Acc Turns Passed 7024 | 77 393 403 611 250 992 318 876 513 13 37 202 206 541 80 92 51 1074 295 Spaces Moved 5328 | 45 195 232 377 153 366 180 389 287 31 85 491 490 419 84 98 71 740 595 Core 546 | 4 . . . . . . . . . . . 34 99 . . . 370 39 Treads 2130 | 41 195 232 377 153 326 180 389 237 . . . . . . . . . . Legs 124 | . . . . . 40 . . . . . . . 84 . . . . . Wheels . | . . . . . . . . . . . . . . . . . . . Hover 622 | . . . . . . . . . . . . . 236 84 98 71 133 . Flight 1906 | . . . . . . . . 50 31 85 491 456 . . . . 237 556 Fastest Speed 28 | 50 160 160 160 160 123 170 167 40 40 40 40 34 50 96 85 28 33 32 Average Speed 95 | 150 160 160 160 160 162 170 169 144 40 40 40 40 79 96 91 42 46 37 Slowest Speed 250 | 160 160 160 160 160 250 170 170 167 40 40 40 50 120 96 96 85 113 50 Overloaded Moves 61 | . . . . . . . . . . . . . . . . . . 61 Propulsion Burnouts . | . . . . . . . . . . . . . . . . . . . Robots Hopped 26 | . . . . . . . . 2 . . . . . . . . 8 16 Cave-ins Triggered . | . . . . . . . . . . . . . . . . . . . Exploration Rate (%) 36 | 5 51 63 71 48 33 5 14 44 1 3 76 74 58 22 5 82 23 24 Regions Visited 18 Branch Regions 8 Pre-discovered Areas 2 | . . 1 . . . . . . . . . 1 . . . . . . Known Exits Taken 1 | . . . . . . . . . . . . . . . 1 . . . Unknown Exits Taken 16 | 1 1 1 1 1 1 1 1 1 1 1 1 1 1 1 . . 1 . Scrap Searched 4 | . . . . 1 . . . . . . 1 1 . 1 . . . . Spaces Dug 8 | . 8 . . . . . . . . . . . . . . . . . Terrain Destroyed 142 | . 25 41 . . 39 . . 35 . . . . 2 . . . . . Melee . | . . . . . . . . . . . . . . . . . . . Projectile 2 | . . . . . . . . . . . . . 2 . . . . . AOE 140 | . 25 41 . . 39 . . 35 . . . . . . . . . . Terrain Rammed . | . . . . . . . . . . . . . . . . . . . Walls Destroyed . | . . . . . . . . . . . . . . . . . . . Machines Disabled . | . . . . . . . . . . . . . . . . . . . Actions | -11 -10 -10 -10 -9 -8 -7 -6 -6 -5 -4 -4 -4 -4 -3 -3 -3 -2 -1 --------- Run | Yrd Mat Min Exi Min Mat Fac Fac Ext Fac Fac Upp Upp War Pro Res DSF Res Acc Total 6923 | 52 244 256 387 158 692 192 526 341 30 86 495 495 615 83 100 87 1455 629 Wait 1259 | . 11 12 . 4 251 . 84 4 . . . . 181 . . 1 694 17 Move 5265 | 44 194 231 376 152 365 179 388 282 30 84 490 489 418 83 97 70 727 566 Hop 18 | . . . . . . . . 2 . . . . . . . . 4 12 Pick Up 33 | 2 9 1 4 2 4 2 2 2 . 1 . . 1 . . 2 1 . Fast Attach 79 | 5 3 1 . . 14 5 9 1 . 1 2 6 5 . 1 6 15 5 Attach 22 | 1 . . 1 . . 1 1 3 . . 1 . 1 . 2 . 2 9 Detach 13 | . . 1 . . . . 1 . . . 1 . 2 . . . 1 7 Swap 15 | . 4 3 1 . 4 . 1 2 . . . . . . . . . . Drop 59 | . 4 2 5 . 14 5 8 3 . . 1 . 2 . . 6 9 . Fire 136 | . 19 5 . . 38 . 32 20 . . . . 5 . . 2 2 13 Melee . | . . . . . . . . . . . . . . . . . . . Ram . | . . . . . . . . . . . . . . . . . . . Kick . | . . . . . . . . . . . . . . . . . . . Crush . | . . . . . . . . . . . . . . . . . . . Escape Stasis . | . . . . . . . . . . . . . . . . . . . Rewire 22 | . . . . . . . . 22 . . . . . . . . . . Trap 2 | . . . . . 2 . . . . . . . . . . . . . Miscellaneous . | . . . . . . . . . . . . . . . . . . . Route ------- -11/Scrapyard -10/Materials -10/Mines (discovered 3 exits: [*Mat x2] / *Exi) -10/Exiles -9/Mines -8/Materials -7/Factory -6/Factory -6/Extension -5/Factory -4/Factory -4/Upper Caves -4/Upper Caves -4/Warlord -3/Proximity Caves -3/Research (discovered 2 exits: Tes / DSF) -3/DSF -2/Research (discovered 2 exits: *Acc / [*Qua]) -1/Access (discovered 2 exits: [*Sur] / Com) To Epsilon Eridani History --------- Turn | Location | Event 3 | -11/Scrapyard | Discovered new exit (range 15) 78 | -11/Scrapyard | Entered Materials 312 | -10/Materials | Build established: Mutant 359 | -10/Materials | Discovered new exit (range 15) 471 | -10/Materials | Entered Mines 541 | -10/Mines | Discovered new exit (range 13) 745 | -10/Mines | Met a Derelict who couldn't figure out how to use a Trap Extractor 772 | -10/Mines | Learned location of Storage (-9) 799 | -10/Mines | Discovered new exit (range 14) 867 | -10/Mines | Deemed a non-threat by the Exiles lab entrance 867 | -10/Mines | Discovered new exit (range 5) 874 | -10/Mines | Entered Exiles 914 | -10/Exiles | Met 8R-AWN 942 | -10/Exiles | Met EX-HEX 990 | -10/Exiles | Met EX-BIN 1010 | -10/Exiles | Aligned with FarCom system 1012 | -10/Exiles | Given EX-Vault access code 1049 | -10/Exiles | Opened EX-Vault 1062 | -10/Exiles | Found Latent Energy Streamer 1066 | -10/Exiles | Found Deploy-a-Sentry 1069 | -10/Exiles | Found Deploy-a-Sentry 1073 | -10/Exiles | Found Deploy-a-Sentry 1107 | -10/Exiles | Warned to stay clear of 0b10 Research branches 1152 | -10/Exiles | Met EX-DEC 1467 | -10/Exiles | Discovered new exit (range 12) 1485 | -10/Exiles | Stole two prototypes: Latent Energy Streamer, Deploy-a-Sentry 1485 | -10/Exiles | Entered Mines 1664 | -9/Mines | Found a hidden stash of uninstalled traps 1682 | -9/Mines | Discovered new exit (range 10) 1735 | -9/Mines | Entered Materials 1735 | -8/Materials | Evolved 4 slots: Propulsion x1, Utility x2, Weapon x1 2414 | -8/Materials | Build established: Skirmisher 2719 | -8/Materials | Discovered new exit (range 5) 2720 | -8/Materials | Destroyed 7 combat bots 2727 | -8/Materials | Entered Factory 2727 | -7/Factory | Evolved 2 slots: Utility x1, Weapon x1 2729 | -7/Factory | FarCom data flow suspended 3023 | -7/Factory | Build established: Tank 3035 | -7/Factory | Discovered new exit (range 4) 3045 | -7/Factory | Entered another Factory area 3045 | -6/Factory | Evolved 2 slots: Propulsion x1, Utility x1 3224 | -6/Factory | DAS Turret deployed 3895 | -6/Factory | Discovered new exit (range 16) 3921 | -6/Factory | Entered Extension 4030 | -6/Extension | Build established: Scavenger-Gunner 4075 | -6/Extension | Energy Cycler disabled 4076 | -6/Extension | Rescued a captive Derelict 4076 | -6/Extension | Rescued a captive Derelict 4077 | -6/Extension | Rescued a captive Derelict 4077 | -6/Extension | Rescued a captive Derelict 4077 | -6/Extension | Rescued a captive Derelict 4078 | -6/Extension | Rescued a captive Derelict 4078 | -6/Extension | Rescued a captive Derelict 4081 | -6/Extension | Rescued a captive Derelict 4408 | -6/Extension | Released all parts (14) 4418 | -6/Extension | Spotted B-75 Beast 4420 | -6/Extension | Spotted B-75 Beast 4421 | -6/Extension | Discovered new exit (range 14) 4423 | -6/Extension | DAS Turret deployed 4426 | -6/Extension | DAS Turret deployed 4429 | -6/Extension | Extracted ID and sensor layout for unrecognized location from A7's data core 4434 | -6/Extension | Entered Factory 4434 | -5/Factory | Evolved 2 slots: Power x1, Propulsion x1 4441 | -5/Factory | Discovered new exit (range 15) 4447 | -5/Factory | Entered another Factory area 4447 | -4/Factory | Evolved 2 slots: Propulsion x1, Utility x1 4478 | -4/Factory | Discovered new exit (range 5) 4484 | -4/Factory | Entered Upper Caves 4484 | -4/Upper Caves | Spotted OT-WC9(f) 4484 | -4/Upper Caves | Spotted 5D-0NI(f) 4486 | -4/Upper Caves | Encountered a Master Thief 4486 | -4/Upper Caves | Encountered a Master Thief 4530 | -4/Upper Caves | Latent Energy Streamer stolen by Master Thief 4683 | -4/Upper Caves | Discovered new exit (range 7) 4686 | -4/Upper Caves | Entered another Upper Caves area 4704 | -4/Upper Caves | Build established: Mutant 4708 | -4/Upper Caves | Encountered a Warlord checkpoint 4719 | -4/Upper Caves | Learned location of Testing (-3) 4742 | -4/Upper Caves | Attracted the attention of an 0b10 checkpoint 4791 | -4/Upper Caves | Learned Research emergency access door positions 4890 | -4/Upper Caves | Discovered new exit (range 5) 4892 | -4/Upper Caves | Entered Warlord 4918 | -4/Warlord | Lost 6 parts (2n3u1w) 5044 | -4/Warlord | Visited the Vortex Lab 5050 | -4/Warlord | Found Prototype Energy Cannon 5050 | -4/Warlord | Identified Vortex Cannon 5053 | -4/Warlord | Found Prototype Energy Gun 5053 | -4/Warlord | Identified Vortex Rifle 5055 | -4/Warlord | Found Vortex Rifle 5063 | -4/Warlord | Warlord's base attacked by MAIN.C 5153 | -4/Warlord | Met Warlord 5290 | -4/Warlord | Warlord forces counterattacked 5334 | -4/Warlord | Build established: Hacker-Gunner 5353 | -4/Warlord | Lost 4 allies 5390 | -4/Warlord | Opened side exit 5417 | -4/Warlord | Spotted Striker 5424 | -4/Warlord | Discovered new exit (range 12) 5433 | -4/Warlord | Entered Proximity Caves 5456 | -3/Proximity Caves | Lost 11 allies 5470 | -3/Proximity Caves | Spotter reported a threat 5503 | -3/Proximity Caves | Discovered new exit (range 12) 5513 | -3/Proximity Caves | Entered Research 5513 | -3/Research | Evolved 2 slots: Utility x1, Weapon x1 5514 | -3/Research | Identified exit to Testing 5605 | -3/Research | Identified exit to DSF 5605 | -3/Research | Entered DSF 5639 | -3/DSF | Additional patrols routed to DSF 5651 | -3/DSF | Discovered new exit (range 15) 5656 | -3/DSF | Entered Research 5656 | -2/Research | Warlord forces began assault on 0b10 5656 | -2/Research | Evolved 2 slots: Utility x1, Weapon x1 5679 | -2/Research | Lost 4 parts (1p2n1w) 5731 | -2/Research | Lost 3 parts (1p2n) 5766 | -2/Research | Research machine network offline 5960 | -2/Research | Met up with Warlord 6152 | -2/Research | Borebot progress halted 6158 | -2/Research | Borebot progress halted 6182 | -2/Research | Build established: Hacker-Mutant 6350 | -2/Research | Borebot progress halted 6554 | -2/Research | Lost 3 allies 6595 | -2/Research | Spotted Striker 6656 | -2/Research | Warlord invited to help at Command 6685 | -2/Research | Discovered new exit (range 15) 6691 | -2/Research | Spotted Executioner 6692 | -2/Research | Discovered new exit (range 11) 6730 | -2/Research | Entered Access 6730 | -1/Access | Evolved 2 slots: Propulsion x2 6909 | -1/Access | Lost 14 parts (2p3n5u4w) 6912 | -1/Access | Identified exit to Command 6974 | -1/Access | Core integrity fell below 50% 6983 | -1/Access | Discovered new exit (range 5) 7001 | -1/Access | Lost 4 parts (3n1w) 7025 | *** | Escaped! Last Messages --------------- 06970_ Critical hit (Blast). 06970_ Knocked back. 06970_ U-05 Engineer system corrupted by crushing effect. 06971_ U-05 Engineer system terminally corrupted. 06971_ U-05 Engineer builds a Door. 06971_ K-01 Serf collects debris. 06973_ Knocked back. 06982_ Connecting with Terminal... >>Open(Door) Sealed Barrier opened. 06983_ The Access Shell folds into the floor. 06983_ EXIT=FOUND 06991_ K-01 Serf cleans the Terminal. 07002_ Sealed Heavy Doors breached. 07010_ Penetrated by Slug. 07010_ Slug penetrates Sealed Heavy Doors. 07012_ System corrupted: Energy discharge (-39). 07016_ Slug penetrates Sealed Heavy Doors. 07022_ Y-72 Warden destroyed. 07024_ K-01 Serf collects debris. Map ----- +----------------------------------------------------+ | ?????????????????????????????????????????????????? | | ?????????????????????????????????????????????????? | | ?????????????????????????????????????????????????? | | ?????????????????????????????????????????????????? | | ?????????????????????????????????????????????????? | | ?????????????????????????????????????????????????? | | ?????????????????????????????????????????????????? | | ?????????????????????????????????????????????????? | | ?????????????????????????????????????????????????? | | ?????????????????????????????????????????????????? | | ???????????#?????????????????????????????????????? | | ??????????# ????????????????????????????????????? | | ??????????# ????????????????????????????????????? | | ??????????# ????????????????????????????????????? | | ??????????# ????????????????????????????????????? | | ??????????# ????????????????????????????????????? | | ??????????# ????????????????????????????????????? | | ??????????# ????????????????????????????????????? | | ??????????# #?????###???????????????????????????? | | ??????????# ####### ##########??????????????????? | | ??????????# """T""" "??????????????????? | | ??????????# """ """ "??????????????????? | | ??????????# "??????????????????? | | ??????????# k "??????? ???????? | | ??????????# "" """" ?????? | | ??????????# @" ?????? | | ??????????# """" ?????? | | ??????????# "??????????????????? | | ??????????#k k "??????????????????? | | ??????????# % "??????????????????? | | ??????????# t####### ##########??????????????????? | | ??????????# #?????###???????????????????????????? | | ??????????# #????####?????????????????????? ?? | | ??????????# #??#??= ?????????????????????? #? | | ??????????# #??# ????????????????????? #? | | ??????????# #??? = ??????????????##????# #? | | ??????????# #????? ????????????? #????# #? | | ??????????# #?????? ????????????? #????# #? | | ?????????## ##??????? ?????????### ##???# #? | | ?????##### ##########+########## #???# #? | | * % % "" #???# #? | | % % "T #???# #? | | ###+###### ##########+#+######## #???# #? | | ?????????##+###???# #####/####??# ## | | ??????????????????# # #??# | | ??????????????????# """""" # = ! #??# #? | | ??????????????????# ""S""" # #### #? | | ?????????????????# """ # / #? | | ?????????????????## # #####/#### | | ??????????????????# === # # | +----------------------------------------------------+ Best States ------------- Heat Dissipation 128 Energy Generation 39 Energy Capacity 290 Matter Stores 300 Matter Capacity 300 Sight Range 16 Robot Scan Range 14 Terrain Scan Range 20 Terrain Scan Density 10 Armor Coverage 225 Resistance: KI 30 Weapon Shielding 66 Evasion (%) 71 Recoil Reduction 4 Energy Filtering 30 Particle Charging 20 Defensive Hacking 33 Item Schematics ----------------- None Robot Schematics ------------------ None Fabricated ------------ Nothing Alien Tech Used ----------------- None Achievements -------------- None Challenges ------------ None Game ------ Seed TacticalRemoteExpander Manual? 0 Play Time 01:09:08 Cumulative 107.1 hours Start 2024.07.04 @ 14:36:49 End 2024.07.30 @ 15:01:17 Sessions 5 Manual Loads 0 Difficulty Rogue Special Mode None Game No. 96 Rogue 96 Adventurer 0 Explorer 0 Win Type 0 Total 5 Types 3/0/1/1/0/0/0/0/0 Lore% 67 Gallery% 73 Achievement% 57 Wizard Run 0 Options --------- Layout 0 ASCII 0 Keyboard 0 Movement Mouse Keybinds 0 Fullscreen 2 Font 18/Terminus Map View 76x50 Zoom Use 0% Tactical HUD 1 Map Filters NONE Filters NONE Steam 1 RUN: 5bf1fdcf-5ba6-4596-9cae-f1feb2eae958